fUSD/lending_fUSD_20240103
["ID","MTS","AMOUNT","RATE_DAILY","PERIOD"]
[310047574,1704298233054,-304.0,0.00030999,2]
[310047575,1704298233066,-8603.6,0.00030999,2]
[310047576,1704298233079,-250.0,0.00030999,2]
[310047577,1704298233285,-3034.43,0.00030999,2]
[310047578,1704298233298,-1265.48923181,0.00030999,2]
[310047598,1704298238301,-504.5,0.00030999,2]
[310047599,1704298238314,-329.65,0.00030999,2]
[310047601,1704298238327,-1141.4342,0.00030999,2]
[310047606,1704298238401,-701.91424189,0.00030999,2]
[310047608,1704298238454,-1126.46725379,0.00030999,2]
[310047610,1704298238467,-64800.0,0.00030999,2]
[310047613,1704298238479,-834.87280297,0.00030999,2]
[310047615,1704298238574,-492.67016026,0.00030999,2]
[310047616,1704298238712,-3156.5158536,0.00030999,2]
[310047617,1704298238756,-1285.22235789,0.000309,2]
[310047618,1704298238769,-21.76432443,0.000309,2]
[310047620,1704298238779,-929.49699829,0.00030999,2]
[310047705,1704298241221,-36823.48315027,0.00030999,2]
[310047706,1704298241249,-2140.55917716,0.00030999,2]
[310047707,1704298241261,-1068.87317859,0.00030999,2]
[310047708,1704298241274,-581.4076944,0.00030999,2]
[310047742,1704298243229,-313.7688,0.00030999,2]
[310047747,1704298243245,-28198.6221001,0.00030999,2]
[310047756,1704298243296,-10346.22770767,0.00030999,2]
[310047758,1704298243308,-9299.5809684,0.00030999,2]
[310047772,1704298243640,-4490.19999992,0.00030999,2]
[310047773,1704298243655,-12305.99840545,0.00030999,2]
[310047774,1704298243668,-1287.69702622,0.00030999,2]
[310047775,1704298243681,-1301.52,0.00030999,2]
[310047776,1704298243715,-11119.61204567,0.00030999,2]
[310047777,1704298243728,-6114.2342,0.00030999,2]
[310047778,1704298243754,-36976.11044961,0.00030999,2]
[310047779,1704298243766,-467.68324091,0.00030999,2]
[310047780,1704298243792,-5639.72747469,0.00030999,2]
[310047781,1704298243806,-23953.37088293,0.00030999,2]
[310047810,1704298246300,-1299.0,0.00030999,2]
[310047811,1704298246510,-2173.05744,0.00030999,2]
[310047812,1704298246769,-167688.8319833,0.00030999,2]
[310047813,1704298246781,-1292.29361381,0.00030999,2]
[310047814,1704298246793,-268.05122256,0.00030999,2]
[310047815,1704298246855,-262960.79410441,0.00030999,2]
[310047816,1704298246868,-909.05295136,0.00030999,2]
[310047817,1704298246880,-82615.19031313,0.00030999,2]
[310047818,1704298261633,217.56881384,0.00025,2]
[310047819,1704298262662,531.79797059,0.00025,2]
[310047820,1704298266104,3206.91073564,0.00025,2]
[310047821,1704298298381,294.64639066,0.00022999,2]
[310047822,1704298302785,422.62058662,0.00022999,4]
[310047893,1704298723096,2000.0,0.00025,2]
[310047918,1704298773990,206.0,0.00024839,2]
[310047944,1704298915457,500.0,0.00022999,4]
[310047946,1704298930452,500.0,0.00022999,4]
[310047947,1704298930482,500.0,0.00022999,4]
[310047948,1704298930516,500.0,0.00022999,4]
[310047949,1704298930565,500.0,0.00022999,4]
[310047950,1704298930650,500.0,0.00022999,4]
[310047951,1704298930698,500.0,0.00022999,4]
[310047953,1704298930773,500.0,0.00022999,4]
[310047954,1704298930813,500.0,0.00022999,4]
[310047955,1704298933233,500.0,0.00022999,4]
[310047956,1704298933268,300.0,0.00022999,4]
[310047957,1704298933364,500.0,0.00022999,4]
[310047958,1704298933407,500.0,0.00022999,4]
[310047959,1704298933574,500.0,0.00022999,4]
[310047960,1704298933611,500.0,0.00022999,4]
[310047961,1704298945507,500.0,0.00022999,4]
[310047962,1704298945563,300.0,0.00022999,4]
[310047971,1704298966321,505.27731798,0.00025,2]
[310047972,1704298967181,541.73151857,0.00024839,2]
[310047974,1704298969303,167.66616628,0.0002,2]
[310048049,1704299044716,207.0,0.00024839,2]
[310048145,1704299191437,500.0,0.00022999,4]
[310048248,1704299332374,400.0,0.00022999,4]
[310048250,1704299332406,400.0,0.00022999,4]
[310048251,1704299332437,401.57958435,0.00022999,4]
[310048300,1704299358317,559.5399,0.0003,120]
[310048384,1704299400302,1020.14806453,0.00022999,2]
[310048385,1704299400988,282.37401869,0.00022999,2]
[310048386,1704299402228,283.42004374,0.00022999,2]
[310048387,1704299404692,697.07756653,0.00022999,2]
[310048388,1704299404991,7403.93401596,0.00022999,2]
[310048389,1704299405223,542.69342556,0.00022999,2]
[310048390,1704299405363,608.0657442,0.00022999,2]
[310048395,1704299406495,291.28624859,0.00022999,2]
[310048396,1704299408008,987.62898229,0.00022999,2]
[310048397,1704299408129,18914.29766501,0.00022999,2]
[310048398,1704299410157,401.16267658,0.00022309,2]
[310048399,1704299411474,312.89687242,0.00022999,2]
[310048400,1704299412276,254.81984417,0.00022999,2]
[310048401,1704299413823,500.0,0.00022999,2]
[310048402,1704299414348,520.00185062,0.00022999,2]
[310048403,1704299416964,6066.31265179,0.00022999,2]
[310048404,1704299416996,282.37401869,0.00022999,2]
[310048405,1704299417028,155.0,0.00022999,2]
[310048406,1704299420995,7403.93401596,0.00022999,2]
[310048407,1704299422387,1020.14806453,0.00022999,2]
[310048408,1704299422469,283.42004374,0.00022999,2]
[310048409,1704299423342,608.0657442,0.00022999,2]
[310048410,1704299425217,542.69342556,0.00022999,2]
[310048411,1704299426485,291.28624859,0.00022999,2]
[310048412,1704299428118,18914.29766501,0.00022999,2]
[310048413,1704299429987,987.62898229,0.00022999,2]
[310048414,1704299430143,401.16267658,0.00022309,2]
[310048415,1704299430279,254.81984417,0.00022999,2]
[310048438,1704299432278,217.56881384,0.00022999,2]
[310048444,1704299432320,-570.09,0.00025792,2]
[310048472,1704299433599,-563.446065,0.00025792,2]
[310048473,1704299433615,-693.59855735,0.00025793,2]
[310048474,1704299433631,-155.0,0.00025793,2]
[310048475,1704299433648,-280.27668862,0.00025793,2]
[310048476,1704299433663,-214.47459225,0.00025794,2]
[310048477,1704299433678,-173.49916985,0.00025794,2]
[310048478,1704299433694,-403.41499984,0.00025794,2]
[310048479,1704299433712,-1727.46334713,0.00025794,2]
[310048480,1704299433727,-563.0,0.00025794,2]
[310048481,1704299433742,-222.29996028,0.00025795,4]
[310048482,1704299433758,-1041.50170874,0.00025795,2]
[310048483,1704299433773,-1753.93539203,0.00025795,2]
[310048484,1704299433789,-269.95716749,0.00025796,2]
[310048485,1704299433804,-361.05118527,0.00025796,2]
[310048486,1704299433819,-309.16657707,0.00025796,2]
[310048487,1704299433834,-155.0,0.00025796,2]
[310048488,1704299433850,-2263.96943386,0.00025796,2]
[310048489,1704299433866,-414.88648268,0.000258,2]
[310048490,1704299433881,-152.00338313,0.000259,2]
[310048491,1704299433898,-499.99,0.000259,2]
[310048492,1704299433912,-338.3780318,0.00025999,2]
[310048493,1704299433948,-4282.16303168,0.00025999,2]
[310048494,1704299433965,-427.11,0.00025999,2]
[310048495,1704299433980,-290.57,0.00025999,12]
[310048496,1704299433997,-208.20724519,0.00026,2]
[310048497,1704299434012,-2000.0,0.00026,2]
[310048498,1704299434028,-152.00338307,0.00026188,2]
[310048499,1704299434043,-440.19,0.00026269,2]
[310048500,1704299434058,-152.00338307,0.00026476,2]
[310048501,1704299434075,-3886.45,0.0002669,2]
[310048502,1704299434090,-825.3549028,0.000267,2]
[310048503,1704299434105,-450.42,0.00026701,2]
[310048504,1704299434120,-250.0,0.00026749,2]
[310048505,1704299434135,-152.00338307,0.00026764,2]
[310048506,1704299434152,-619.55,0.00026865,2]
[310048507,1704299434167,-252.78,0.00026865,2]
[310048508,1704299434183,-150.0,0.00026877,2]
[310048509,1704299434197,-13875.54,0.00026886,2]
[310048510,1704299434213,-183.01,0.00026888,2]
[310048511,1704299434236,-226.33,0.00026906,2]
[310048512,1704299434258,-500.0,0.00026907,2]
[310048513,1704299434277,-200.0,0.00026936,2]
[310048514,1704299434295,-1852.42,0.00026936,2]
[310048515,1704299434315,-159.58,0.00026955,2]
[310048516,1704299434332,-4627.49,0.00026955,2]
[310048517,1704299434347,-500.0,0.00026955,2]
[310048518,1704299434363,-226.33,0.0002698,2]
[310048519,1704299434381,-1250.0,0.00027,3]
[310048520,1704299434398,-2000.0,0.00027,2]
[310048521,1704299434414,-2000.0,0.00027,2]
[310048522,1704299434430,-171.9,0.00027009,2]
[310048523,1704299434446,-206.0,0.00027035,2]
[310048524,1704299434462,-204.0,0.00027035,2]
[310048525,1704299434477,-152.00338307,0.00027052,2]
[310048526,1704299434493,-226.33,0.00027054,2]
[310048527,1704299434508,-500.0,0.00027089,2]
[310048528,1704299434524,-226.33,0.00027127,2]
[310048529,1704299434539,-226.33,0.00027201,2]
[310048530,1704299434554,-226.33,0.00027275,2]
[310048531,1704299434570,-152.00338307,0.0002734,2]
[310048532,1704299434585,-226.33,0.00027349,2]
[310048533,1704299434600,-3389.0,0.00027397,4]
[310048534,1704299434615,-250.0,0.00027397,2]
[310048535,1704299434629,-226.33,0.00027423,2]
[310048536,1704299434644,-226.33,0.00027496,2]
[310048537,1704299434659,-226.33,0.0002757,2]
[310048538,1704299434673,-152.00338307,0.00027628,2]
[310048539,1704299434690,-226.33,0.00027644,2]
[310048540,1704299434705,-226.33,0.00027718,2]
[310048541,1704299434719,-226.33,0.00027791,2]
[310048542,1704299434735,-619.55,0.00027843,2]
[310048543,1704299434750,-226.33,0.00027865,2]
[310048544,1704299434764,-152.00338307,0.00027916,2]
[310048545,1704299434778,-226.33,0.00027939,2]
[310048546,1704299434793,-2000.0,0.00028,2]
[310048547,1704299434807,-2000.0,0.00028,2]
[310048548,1704299434822,-226.33,0.00028013,2]
[310048549,1704299434836,-2000.0,0.00028055,2]
[310048550,1704299434851,-226.33,0.00028087,2]
[310048551,1704299434866,-238.52,0.00028116,2]
[310048552,1704299434881,-226.33,0.0002816,2]
[310048553,1704299434897,-152.00338307,0.00028204,2]
[310048554,1704299434911,-226.33,0.00028234,2]
[310048555,1704299434926,-226.33,0.00028308,2]
[310048556,1704299434942,-3581.22,0.00028347,2]
[310048557,1704299434957,-155.0,0.00028377,2]
[310048558,1704299434972,-152.00338307,0.00028493,2]
[310048559,1704299434988,-440.19,0.00028533,2]
[310048560,1704299435003,-183.01,0.0002868,2]
[310048561,1704299435018,-152.00338307,0.00028781,2]
[310048562,1704299435039,-440.6890803,0.00028798,2]
[310048563,1704299435057,-693.37623314,0.00028798,2]
[310048564,1704299435072,-9488.88,0.00028813,2]
[310048565,1704299435086,-841.5,0.00028814,2]
[310048566,1704299435096,-619.55,0.00028822,2]
[310048567,1704299435106,-915.77,0.00028875,2]
[310048568,1704299435116,-6630.34,0.00028904,2]
[310048569,1704299435126,-1000.0,0.0002891,2]
[310048570,1704299435136,-749.88,0.00028988,10]
[310048571,1704299435580,-399.69552975,0.00028998,6]
[310048572,1704299435611,-158.96797182,0.00028998,2]
[310048573,1704299435635,-2129.994798,0.00028998,2]
[310048574,1704299435648,-13013.89300434,0.00028998,2]
[310048575,1704299435659,-761.3017059,0.00028998,4]
[310048576,1704299435669,-2178.53,0.00028999,2]
[310048577,1704299435680,-2178.53,0.00028999,2]
[310048578,1704299435690,-2178.53,0.00028999,2]
[310048579,1704299435703,-2178.53,0.00028999,2]
[310048580,1704299435714,-2178.53,0.00028999,2]
[310048581,1704299435724,-2178.53,0.00028999,2]
[310048582,1704299435734,-2178.53,0.00028999,2]
[310048583,1704299435746,-2178.53,0.00028999,2]
[310048584,1704299435756,-333.58542,0.00028999,15]
[310048585,1704299435767,-1300.0,0.00029,3]
[310048586,1704299435779,-2000.0,0.00029,2]
[310048587,1704299435790,-2000.0,0.00029,2]
[310048588,1704299435800,-112369.34930887,0.00029,2]
[310048589,1704299435850,-1853.68900406,0.00029,2]
[310048590,1704299435863,-574.03700344,0.00029,2]
[310048591,1704299435885,-713.61630185,0.00029,2]
[310048592,1704299435900,-843.61828265,0.00029,2]
[310048593,1704299435913,-1203.30119724,0.00029,2]
[310048594,1704299435926,-608.55071799,0.00029,2]
[310048595,1704299435942,-617.55407124,0.00029,2]
[310048596,1704299435955,-1183.63146754,0.00029,2]
[310048597,1704299435967,-1057.84970921,0.00029,2]
[310048598,1704299435980,-831.39159651,0.00029,2]
[310048599,1704299435993,-668.8695985,0.00029,2]
[310048600,1704299436003,-896.67,0.00029002,2]
[310048601,1704299436013,-165.14,0.00029065,2]
[310048602,1704299436023,-152.00338307,0.00029069,2]
[310048603,1704299436034,-612.26541746,0.0002917,2]
[310048604,1704299436060,-284.40458254,0.0002917,2]
[310048605,1704299436070,-56.26207139,0.0002923,2]
[310048606,1704299436083,-657.73792861,0.0002923,2]
[310048607,1704299436093,-459.27576184,0.00029337,2]
[310048608,1704299436106,-437.39423816,0.00029337,2]
[310048609,1704299436116,-80.4564488,0.00029357,2]
[310048610,1704299436176,6066.31265179,0.00022999,2]
[310048611,1704299436273,500.0,0.00022999,2]
[310048612,1704299436432,520.00185062,0.00022999,2]
[310048613,1704299436982,155.0,0.00022999,2]
[310048614,1704299437014,282.37401869,0.00022999,2]
[310048615,1704299437182,531.79797059,0.00022999,2]
[310048623,1704299438525,-361.05118527,0.00025791,2]
[310048624,1704299438535,-250.0,0.00026688,2]
[310048625,1704299438546,-71.54693427,0.00029357,2]
[310048626,1704299438556,-896.67,0.00029505,2]
[310048627,1704299438566,-461.94,0.00029511,2]
[310048628,1704299438576,-2073.1041,0.00029589,10]
[310048629,1704299438586,-152.00338307,0.00029645,2]
[310048630,1704299438596,-461.94,0.00029666,2]
[310048631,1704299438606,-896.67,0.00029672,2]
[310048632,1704299438616,-152.32,0.00029728,2]
[310048633,1704299438626,-379.97306694,0.000298,2]
[310048634,1704299438636,-619.55,0.000298,2]
[310048635,1704299438646,-461.94,0.00029822,2]
[310048636,1704299438658,-896.67,0.0002984,2]
[310048637,1704299438668,-379.97306692,0.0002985,2]
[310048638,1704299438678,-735.1,0.000299,2]
[310048639,1704299438688,-1370.1346,0.000299,2]
[310048640,1704299438699,-1521.0888,0.000299,2]
[310048641,1704299438709,-827.2818,0.000299,2]
[310048642,1704299438719,-256.12033118,0.000299,4]
[310048643,1704299438729,-380.83098952,0.000299,2]
[310048644,1704299438740,-263.99964119,0.000299,7]
[310048645,1704299438750,-1632.3267,0.000299,2]
[310048646,1704299438760,-40314.8916,0.000299,2]
[310048647,1704299438770,-7500.0,0.000299,2]
[310048648,1704299438779,-514.86706728,0.000299,2]
[310048649,1704299438789,-208.0,0.000299,2]
[310048650,1704299438799,-291.65838666,0.000299,2]
[310048651,1704299438809,-379.97306692,0.000299,2]
[310048652,1704299438819,-1107.55653629,0.000299,2]
[310048653,1704299438829,-152.00338307,0.00029933,2]
[310048654,1704299438838,-461.94,0.00029977,2]
[310048655,1704299438848,-417.95209149,0.00029983,2]
[310048656,1704299438857,-11917.65321199,0.0002999,2]
[310048657,1704299438866,-190.83209518,0.0002999,2]
[310048658,1704299438876,-190.83209518,0.0002999,2]
[310048659,1704299438885,-184.06324017,0.00029998,2]
[310048660,1704299438895,-217.28450417,0.00029998,2]
[310048661,1704299438905,-865.31063193,0.00029998,2]
[310048662,1704299438914,-277.96277619,0.00029998,2]
[310048663,1704299438924,-253.03478513,0.00029998,2]
[310048664,1704299438934,-354.60259077,0.00029998,2]
[310048665,1704299438944,-3177.35057055,0.00029998,2]
[310048666,1704299438954,-3313.16325902,0.00029998,2]
[310048667,1704299438964,-364.28657799,0.00029998,2]
[310048668,1704299438973,-418.34918944,0.00029998,2]
[310048669,1704299438983,-1107.21305108,0.00029998,2]
[310048670,1704299438992,-156.29087205,0.00029998,2]
[310048671,1704299439002,-300.69965138,0.00029998,2]
[310048672,1704299439011,-207.9220019,0.00029998,2]
[310048675,1704299439021,-211.806731,0.00029998,2]
[310048677,1704299439031,-2697.56907324,0.00029998,2]
[310048680,1704299439040,-302.21498595,0.00029998,2]
[310048683,1704299439050,-484.17224842,0.00029998,2]
[310048685,1704299439060,-1852.14778372,0.00029998,2]
[310048687,1704299439069,-3866.53307652,0.00029998,2]
[310048689,1704299439079,-260.53596921,0.00029998,2]
[310048691,1704299439088,-2178.53,0.00029999,2]
[310048694,1704299439098,-2178.53,0.00029999,2]
[310048695,1704299439107,-31752.44539108,0.0003,4]
[310048696,1704299439117,-2000.0,0.0003,2]
[310048697,1704299439127,-2000.0,0.0003,2]
[310048698,1704299439136,-444.58913394,0.0003,4]
[310048699,1704299439146,-8806.28564995,0.0003,4]
[310048700,1704299439157,-155.0,0.0003,4]
[310048701,1704299439166,-676.38772422,0.0003,4]
[310048702,1704299439175,-102735.86039535,0.0003,4]
[310048703,1704299439188,-120548.36484598,0.0003,4]
[310048704,1704299439200,-84450.114016,0.0003,4]
[310048705,1704299439210,-460.72452493,0.0003,4]
[310048706,1704299439220,-2649.28639543,0.0003,2]
[310048707,1704299439232,-118725.70627042,0.0003,2]
[310048708,1704299439246,-211664.5249893,0.0003,2]
[310048709,1704299439258,-408258.79153207,0.0003,2]
[310048710,1704299439270,-67176.40592153,0.0003,2]
[310048711,1704299439282,-76298.57548771,0.0003,2]
[310048712,1704299439294,-1230.07390528,0.0003,2]
[310048713,1704299439324,-805858.52304602,0.0003,2]
[310048714,1704299439334,-155.0,0.0003,2]
[310048715,1704299439344,-811.07666778,0.0003,4]
[310048716,1704299439354,-6134.80104208,0.0003,3]
[310048717,1704299439364,-400.0,0.0003,2]
[310048718,1704299439374,-1203.2446567,0.0003,4]
[310048719,1704299439383,-2321.61307697,0.0003,2]
[310048720,1704299439396,-17127.34836991,0.0003,3]
[310048721,1704299439408,-896.67,0.00030007,2]
[310048722,1704299439418,-152.32,0.00030038,2]
[310048723,1704299439428,-685.97261537,0.00030067,4]
[310048724,1704299439438,-461.94,0.00030132,2]
[310048725,1704299439448,-406.39,0.00030137,2]
[310048726,1704299439458,-896.67,0.00030175,2]
[310048727,1704299439468,-152.00338307,0.00030221,2]
[310048728,1704299439477,-461.94,0.00030287,2]
[310048729,1704299439487,-206.0,0.00030332,7]
[310048730,1704299439497,-896.67,0.00030343,2]
[310048731,1704299439506,-152.32,0.00030349,2]
[310048732,1704299439516,-461.94,0.00030443,2]
[310048733,1704299439526,-183.01,0.00030472,2]
[310048734,1704299439536,-152.00338307,0.00030509,2]
[310048735,1704299439546,-896.67,0.0003051,2]
[310048736,1704299439555,-461.94,0.00030598,2]
[310048737,1704299439566,-380.83098948,0.00030619,2]
[310048738,1704299439575,-152.32,0.0003066,2]
[310048739,1704299439585,-11269.97481725,0.0003069,2]
[310048740,1704299439594,-461.94,0.00030753,2]
[310048741,1704299439604,-619.55,0.00030779,2]
[310048742,1704299439613,-1000.0,0.00030795,2]
[310048743,1704299439622,-572.91768895,0.00030796,5]
[310048744,1704299439633,-176.23452681,0.00030797,2]
[310048745,1704299439642,-274.70547145,0.00030797,5]
[310048746,1704299439653,-152.00338307,0.00030797,2]
[310048747,1704299439663,-440.19,0.00030797,2]
[310048748,1704299439673,-155.20238462,0.00030893,4]
[310048749,1704299439682,-155.0,0.00030893,4]
[310048750,1704299439692,-158.28692601,0.00030893,4]
[310048751,1704299439705,-468.36827203,0.00030893,4]
[310048752,1704299439714,-410.96513465,0.00030893,4]
[310048753,1704299439726,-65626.34281605,0.00030893,4]
[310048754,1704299439736,-114308.1258,0.00030897,2]
[310048755,1704299439747,-171.2697,0.00030897,2]
[310048756,1704299439757,-28237.6503,0.00030897,2]
[310048757,1704299439767,-4580.5547,0.00030897,2]
[310048758,1704299439777,-500.0,0.00030899,2]
[310048759,1704299440000,-180.73717054,0.00030899,2]
[310048760,1704299440009,-662.74788313,0.000309,18]
[310048761,1704299440020,-153.84,0.00030904,2]
[310048762,1704299440029,-461.94,0.00030909,2]
[310048763,1704299440039,-403.37,0.00030959,2]
[310048764,1704299440049,-152.32,0.00030971,2]
[310048765,1704299440059,-190.83209518,0.0003099,2]
[310048766,1704299440069,-930.3125847,0.00030995,2]
[310048767,1704299440079,-2415.66117059,0.00030995,2]
[310048768,1704299440089,-688.92559834,0.00030995,2]
[310048769,1704299440100,-195.2831564,0.00030997,4]
[310048770,1704299440110,-962.51555815,0.00030997,4]
[310048771,1704299440120,-1000.0,0.00030998,5]
[310048772,1704299440130,-1000.0,0.00030998,5]
[310048773,1704299440141,-725.23,0.00030999,2]
[310048774,1704299440154,-268.77592193,0.00030999,4]
[310048775,1704299440164,-3853.39851426,0.00030999,4]
[310048776,1704299440174,-2000.0,0.00030999,2]
[310048777,1704299440185,-200.0,0.00030999,2]
[310048778,1704299440195,-2278.08835,0.00030999,2]
[310048779,1704299440205,-50000.0,0.00031,2]
[310048780,1704299440216,-466249.86875074,0.00031,2]
[310048781,1704299440230,-33750.13124926,0.00031,2]
[310048782,1704299440240,-1350.0,0.00031,3]
[310048783,1704299440250,-2000.0,0.00031,2]
[310048784,1704299440260,-2000.0,0.00031,2]
[310048785,1704299440270,-461.94,0.00031064,2]
[310048786,1704299440280,-572.91768888,0.00031079,5]
[310048787,1704299440290,-151.0,0.00031161,120]
[310048788,1704299440299,-2892.0,0.00031213,2]
[310048789,1704299440310,-757.152,0.00031213,2]
[310048790,1704299440319,-842.78,0.00031213,2]
[310048791,1704299440330,-893.923,0.00031213,2]
[310048792,1704299440339,-942.0,0.00031213,2]
[310048793,1704299440349,-1026.0,0.00031213,2]
[310048794,1704299440359,-1234.0,0.00031213,2]
[310048795,1704299440369,-822.777,0.00031213,2]
[310048796,1704299440379,-1256.0,0.00031213,2]
[310048797,1704299440389,-461.94,0.00031219,2]
[310048798,1704299440399,-152.32,0.00031281,2]
[310048799,1704299440411,-492.0,0.00031286,3]
[310048800,1704299440421,-200.0,0.00031309,2]
[310048801,1704299440431,-1062.51344054,0.00031336,2]
[310048802,1704299440441,-380.83098948,0.00031338,2]
[310048803,1704299440450,-291.65838665,0.00031338,2]
[310048804,1704299440459,-1107.55653629,0.00031338,2]
[310048805,1704299440469,-572.91768888,0.00031362,5]
[310048806,1704299440479,-461.94,0.00031375,2]
[310048807,1704299440489,-170.54,0.0003143,2]
[310048808,1704299440499,-973.95555245,0.00031438,2]
[310048809,1704299440509,-2486.19370215,0.0003153,14]
[310048810,1704299440519,-461.94,0.0003153,2]
[310048811,1704299440529,-152.32,0.00031592,2]
[310048812,1704299440538,-150.0,0.000316,2]
[310048813,1704299440548,-572.91768888,0.00031645,5]
[310048814,1704299440557,-461.94,0.00031685,2]
[310048815,1704299440566,-619.55,0.00031757,2]
[310048816,1704299440575,-151.0,0.00031797,30]
[310048817,1704299440584,-150.1,0.000318,2]
[310048818,1704299440594,-34611.16373185,0.000318,2]
[310048819,1704299440624,-468.48649487,0.000318,2]
[310048820,1704299440635,-591.5,0.000318,2]
[310048821,1704299440647,-462.83023835,0.000318,2]
[310048822,1704299440660,-841.11603214,0.000318,2]
[310048823,1704299440780,1020.14806453,0.00022999,2]
[310048826,1704299440964,-546.23322818,0.000318,2]
[310048827,1704299440980,-7110.97941814,0.000318,2]
[310048828,1704299440991,-17520.09356918,0.000318,2]
[310048834,1704299441641,-28490.59720739,0.000318,2]
[310048835,1704299441651,-153.84,0.0003184,2]
[310048837,1704299441663,-461.94,0.00031841,2]
[310048839,1704299441673,-1725.73802789,0.00031879,3]
[310048841,1704299441682,-3687.03441362,0.000319,3]
[310048843,1704299441692,-150.86287758,0.000319,2]
[310048845,1704299441705,-152.32,0.00031903,2]
[310048847,1704299441715,-572.91768888,0.00031927,5]
[310048849,1704299441727,-3687.03441354,0.0003198,3]
[310048851,1704299441737,-461.94,0.00031996,2]
[310048853,1704299441747,-100000.0,0.00032,2]
[310048855,1704299441757,-296.83355854,0.00032,4]
[310048856,1704299441766,-2000.0,0.00032,2]
[310048859,1704299441776,-2000.0,0.00032,2]
[310048860,1704299441786,-301.26,0.00032,2]
[310048861,1704299441795,-240.54756677,0.00032043,4]
[310048862,1704299441805,-1264.12879631,0.00032043,2]
[310048863,1704299441817,-380.83098948,0.00032057,2]
[310048864,1704299441832,-3687.03441354,0.00032059,3]
[310048865,1704299441842,-3687.03441354,0.00032139,3]
[310048866,1704299441851,-461.94,0.00032151,2]
[310048867,1704299441861,-4936.95,0.00032158,4]
[310048868,1704299441871,-10793.15,0.00032158,4]
[310048869,1704299441880,-41805.65,0.00032158,4]
[310048870,1704299441890,-23603.98,0.00032158,4]
[310048871,1704299441899,-28844.74,0.00032158,4]
[310048872,1704299441912,-5437.85,0.00032158,4]
[310048873,1704299441922,-208096.22,0.00032158,4]
[310048874,1704299441931,-52158.75,0.00032158,4]
[310048875,1704299441940,-60634.45,0.00032158,4]
[310048877,1704299441950,-205.22,0.00032158,4]
[310048879,1704299441960,-1025214.34,0.00032193,4]
[310048880,1704299441970,-11554.12,0.00032193,4]
[310048881,1704299441979,-40687.53,0.00032193,4]
[310048882,1704299441988,-63638.65,0.00032193,4]
[310048883,1704299441998,-13230.77,0.00032193,4]
[310048884,1704299442007,-465.75,0.000322,2]
[310048885,1704299442017,-235.957,0.000322,2]
[310048886,1704299442026,-461.722,0.000322,2]
[310048887,1704299442035,-764.83,0.000322,2]
[310048888,1704299442045,-318.0,0.000322,2]
[310048889,1704299442055,-1952.509,0.000322,2]
[310048890,1704299442064,-2265.0,0.000322,2]
[310048891,1704299442073,-387.0,0.000322,2]
[310048892,1704299442081,-572.91768888,0.0003221,5]
[310048893,1704299442091,-152.32,0.00032213,2]
[310048894,1704299442101,-3687.03441354,0.00032219,4]
[310048895,1704299442110,-3000.0,0.0003226,2]
[310048896,1704299442119,-183.01,0.00032265,2]
[310048897,1704299442128,-3687.03441354,0.00032298,4]
[310048898,1704299442138,-461.94,0.00032307,2]
[310048899,1704299442147,-3687.03441354,0.00032378,4]
[310048900,1704299442159,-151.0,0.00032446,7]
[310048901,1704299442168,-3687.03441354,0.00032457,4]
[310048902,1704299442178,-461.94,0.00032462,2]
[310048903,1704299442188,-572.91768888,0.00032493,6]
[310048904,1704299442198,-16466.01389771,0.000325,2]
[310048905,1704299442207,-500.0,0.00032514,2]
[310048906,1704299442217,-1000.0,0.00032524,2]